Cogmind - Beta 14 @@@ ROGUE MODE // 2024.09.08 @ 14:03:34 Player: Maulwurf Result: Destroyed by H-55 Commando with Gauss Rifle Performance ------------- Evolutions (2) 1000 Regions Visited (4) 800 Robots Destroyed (30) 150 Value Destroyed (1059) 1059 Prototype IDs (0) 0 Alien Tech Used (0) 0 Bonus (0) 0 TOTAL SCORE: 3009 Bonus ------- None Cogmind --------- Core Integrity 0/550 Matter 221/300 Energy 41/100 System Corruption 0% Temperature Cool (85) Movement Core (400) Ox7 Location -8/Materials Parts ------- > --- POWER (1) -------- (None) > --- PROPULSION (4) --- (None) > --- UTILITY (3) ------ Medium Storage Unit Medium Storage Unit Core Shielding > --- WEAPON (3) ------- Small Laser > --- INVENTORY (10) --- Medium Storage Unit Transport Network Coupler Peak State ------------ > --- POWER ------------ Improved Ion Engine > --- PROPULSION ------- Aluminum Leg Aluminum Leg Aluminum Leg Aluminum Leg > --- UTILITY ---------- Medium Storage Unit Light Armor Plating > --- WEAPON ----------- Heavy Assault Rifle Shotgun Minigun > --- INVENTORY -------- Aluminum Leg Medium Storage Unit Medium Storage Unit Transport Network Coupler Core Shielding Small Laser Particle Gun Assault Rifle Light Assault Rifle [Rating: 16] Favorites ----------- Power Ion Engine Engine Ion Engine Power Core Light Nuclear Core Propulsion Aluminum Leg Treads Light Treads Leg Aluminum Leg Utility Medium Storage Unit Device ECM Suite Storage Medium Storage Unit Protection Light Armor Plating Weapon Assault Rifle Energy Gun Medium Laser Ballistic Gun Assault Rifle Build | -11 -10 -10 -9 -8 ------- Run | Yrd Mat Min Mat Mat Slots Evolved 4 | . . . 2 2 Power . | . . . . . Propulsion 2 | . . . 2 . Utility 1 | . . . . 1 Weapon 1 | . . . . 1 Parts Attached 44 | 6 7 3 15 13 Power 5 | 1 1 1 1 1 Engine 4 | 1 1 1 . 1 Core 1 | . . . 1 . Reactor . | . . . . . Propulsion 17 | 2 3 2 8 2 Treads 6 | 2 2 . 2 . Leg 11 | . 1 2 6 2 Wheel . | . . . . . Hover . | . . . . . Flight . | . . . . . Utility 9 | 1 1 . 3 4 Device 1 | . 1 . . . Storage 6 | 1 . . 3 2 Processor . | . . . . . Hackware . | . . . . . Protection 2 | . . . . 2 Artifact . | . . . . . Weapon 13 | 2 2 . 3 6 Energy Gun 4 | 1 1 . . 2 Energy Cannon . | . . . . . Ballistic Gun 9 | 1 1 . 3 4 Ballistic Cannon . | . . . . . Launcher . | . . . . . Special Weapon . | . . . . . Impact Weapon . | . . . . . Slashing Weapon . | . . . . . Piercing Weapon . | . . . . . Special Melee Weapon . | . . . . . Unidentified Prototypes . | . . . . . Parts Lost 20 | . 1 2 3 14 Power 2 | . . 1 . 1 Propulsion 9 | . . 1 2 6 Utility 1 | . . . . 1 Weapon 8 | . 1 . 1 6 Highest Loss Streak 13 | . 1 1 1 13 To Critical Strikes 3 | . . 2 . 1 Average Slot Usage (%) 94 | . 97 96 93 87 Engine 7 | . 13 13 . 5 Core 3 | . . . 8 . Treads 10 | . 27 4 2 . Leg 22 | . . 21 37 32 Device 7 | . 13 14 3 . Storage 16 | . 14 14 18 17 Protection 1 | . . . . 5 Energy Gun 8 | . 12 14 8 . Ballistic Gun 16 | . 14 14 13 24 Peak Build Rating 16 | 6 8 8 13 16 Average Rating 8 | 5 7 7 11 13 On Entrance 6 | . 6 8 8 11 Naked Turns . | . . . . . Heaviest Build 46 | 14 16 16 30 46 Greatest Support 40 | 40 40 20 40 40 Greatest Overweight (x) 8 | . 3 . 8 2 Average Overweight (x) . | . . . . . Largest Inventory Capacity 10 | 8 8 8 10 10 Average Capacity 8 | 7 8 8 9 10 Most Carried 10 | 6 8 8 10 10 Average Carried 7 | 5 7 7 8 7 Final Capacity 10 | 8 8 8 10 10 Final Carried 10 | 6 8 8 10 2 Class Distribution -------------------- 71% | Mutant 15% | Scavenger-Mutant 9% | Scavenger-Tank 3% | Scavenger-Gunner Dominant Class ---------------- Mutant | -10/Materials Mutant | -10/Mines Scavenger-Mutant | -9/Materials Scavenger-Tank | -8/Materials Resources | -11 -10 -10 -9 -8 ----------- Run | Yrd Mat Min Mat Mat Matter Collected 1057 | 185 207 68 272 325 Remotely . | . . . . . Salvage Created 1282 | . 360 100 420 402 Parts 77 | . 17 10 23 27 Haulers Intercepted . | . . . . . Recyclers Shooed 3 | . . 1 2 . Parts Field Recycled . | . . . . . Retrieved Matter . | . . . . . Parts Self-Destructed . | . . . . . Prevented . | . . . . . Kills | -11 -10 -10 -9 -8 ------- Run | Yrd Mat Min Mat Mat Combat Hostiles Destroyed 29 | . 6 6 9 8 Guns 29 | . 6 6 9 8 Classes Destroyed 6 | . 2 1 1 2 Recycler 1 | . 1 . . . Swarmer 6 | . . 6 . . Grunt 15 | . 6 . 6 3 Duelist 1 | . . . . 1 Sentry 6 | . . . 3 3 Specialist 1 | . . . . 1 Best Kill Streak 4 | . 2 3 2 4 Combat Bots Only 4 | . 2 3 2 4 Max Kills in Single Turn 1 | . 1 1 1 1 Gunslinging . | . . . . . Exploded . | . . . . . Melee . | . . . . . Uniques/NPCs Destroyed . | . . . . . Combat | -11 -10 -10 -9 -8 -------- Run | Yrd Mat Min Mat Mat Hostile Shots Fired 283 | . 41 41 54 147 Missed 91 | . 15 15 20 41 Damage Taken 2848 | . 354 206 468 1820 Core 761 | . 95 46 65 555 Absorbed by Shields . | . . . . . Redirected to Shielding 6 | . . . . 6 Regen/Repaired (Parts) 23 | . . . 23 . Core Remaining (%) 75 | 100 . 43 83 . Volleys Fired 133 | . 24 15 52 42 Largest 3 | . 2 2 2 3 Hottest 108 | . 70 70 70 108 Shots Fired 285 | . 45 30 99 111 Gun 285 | . 45 30 99 111 Cannon . | . . . . . Launcher . | . . . . . Special . | . . . . . Kinetic 200 | . 26 15 60 99 Thermal 76 | . 10 15 39 12 Explosive . | . . . . . Electromagnetic 9 | . 9 . . . Robot Hit Streak 13 | . 9 3 13 9 Robot Miss Streak 4 | . 2 4 2 4 Penetration Max . | . . . . . Secondary Targets 1 | . . 1 . . Max Gunslinging Chain 1 | . . 1 . . Shots Hit Robots 169 | . 29 15 51 74 Core Hits 73 | . 14 7 22 30 Critical Kills 1 | . . . 1 . Critical Parts Destroyed 1 | . . . . 1 Critical Strikes 6 | . 1 1 2 2 Burn 4 | . 1 1 1 1 Destroy 2 | . . . 1 1 Melee Attacks . | . . . . . Impact . | . . . . . Slashing . | . . . . . Piercing . | . . . . . Sneak Attacks . | . . . . . Combat Hostiles . | . . . . . Follow-up Attacks . | . . . . . Damage Inflicted 2410 | 2 376 221 719 1092 Guns 2369 | . 369 221 711 1068 Cannons . | . . . . . Explosions . | . . . . . Melee . | . . . . . Ramming 41 | 2 7 . 8 24 Kinetic 1590 | . 182 110 361 937 Thermal 667 | . 75 111 350 131 Explosive . | . . . . . Electromagnetic 112 | . 112 . . . Impact . | . . . . . Slashing . | . . . . . Piercing . | . . . . . Highest Corruption . | . . . . . Average Corruption . | . . . . . Corruption Purged . | . . . . . Corruption Blocked . | . . . . . Overload Shots . | . . . . . Overflow Damage . | . . . . . Projectiles . | . . . . . Explosions . | . . . . . Melee . | . . . . . Knockbacks . | . . . . . Impact . | . . . . . Kinetic . | . . . . . Secondary . | . . . . . Self-Inflicted Damage . | . . . . . Shots . | . . . . . Rammed 2 | 1 1 . . . Targets Rammed 6 | 1 2 . 2 1 Kicked 3 | . . . 2 1 Crushed 1 | . 1 . . . Highest Temperature 162 | . 126 81 81 162 Average Temperature 36 | . 39 30 28 47 Received Heat Transfer 837 | . 198 . 261 378 Siege Activations . | . . . . . Robots Corrupted . | . . . . . Combat Hostiles . | . . . . . Parts Fried . | . . . . . Impact Corruptions . | . . . . . Robots Melted . | . . . . . Combat Hostiles . | . . . . . Parts Melted 4 | . 3 . 1 . Heat Transferred 2208 | . 296 407 1110 395 Parts Sabotaged . | . . . . . Parts Stolen . | . . . . . Parts Stripped . | . . . . . Power Chain Reactions . | . . . . . Alert | -11 -10 -10 -9 -8 ------- Run | Yrd Mat Min Mat Mat Peak Influence 265 | . 146 120 214 265 Initial 60 | . . . 46 60 Average 69 | . 43 95 106 150 Maximum Alert Level 1 | . . . 1 1 Low Security (%) 93 | 100 100 100 93 69 Level 1 6 | . . . 6 30 Level 2 . | . . . . . Level 3 . | . . . . . Level 4 . | . . . . . Level 5 . | . . . . . High Security . | . . . . . Max Security . | . . . . . Squads Dispatched 6 | . 1 . 1 4 Investigation . | . . . . . Extermination . | . . . . . Reinforcement 6 | . 1 . 1 4 Assault . | . . . . . Garrison . | . . . . . Intercept . | . . . . . Searches Triggered . | . . . . . Construction Impeded . | . . . . . Haulers Reinforced . | . . . . . Active Scanning Responses . | . . . . . Cargo Convoy Interrupts . | . . . . . Stealth | -11 -10 -10 -9 -8 --------- Run | Yrd Mat Min Mat Mat Distress Signals 2 | . . . 1 1 Communications Jammed . | . . . . . Distress Signals . | . . . . . Times Spotted 59 | . 17 5 16 21 Peak Tracking Total 8 | . 4 3 5 8 Tactical Retreats 5 | . 5 . . . Traps | -11 -10 -10 -9 -8 ------- Run | Yrd Mat Min Mat Mat Traps Triggered 2 | . 1 . 1 . Indirectly . | . . . . . Trap Hack Attempts . | . . . . . Triggered . | . . . . . Disarmed . | . . . . . Reprogrammed . | . . . . . Reused . | . . . . . Traps Extracted . | . . . . . Installed . | . . . . . Triggered . | . . . . . Machines | -11 -10 -10 -9 -8 ---------- Run | Yrd Mat Min Mat Mat Machines Disabled . | . . . . . Max in Single Turn . | . . . . . Machines Repaired . | . . . . . Machines Dismantled . | . . . . . Machines Sabotaged . | . . . . . Overloaded Fab Kills . | . . . . . Hacking | -11 -10 -10 -9 -8 --------- Run | Yrd Mat Min Mat Mat Machines Accessed 6 | . 2 . 3 1 Terminals 3 | . 1 . 1 1 Fabricators . | . . . . . Repair Stations 2 | . . . 2 . Recycling Units 1 | . 1 . . . Scanalyzers . | . . . . . Garrison Access . | . . . . . Total Hacks 18 | . 10 . 6 2 Successful 12 | . 8 . 2 2 Failed 6 | . 2 . 4 . Catastrophic 3 | . 1 . 2 . Database Lockouts . | . . . . . Manual . | . . . . . Terminals 5 | . 1 . 2 2 Fabricators . | . . . . . Repair Stations 4 | . . . 4 . Recycling Units 9 | . 9 . . . Scanalyzers . | . . . . . Garrison Access . | . . . . . Terminal Hacks 3 | . 1 . . 2 Record 1 | . . . . 1 Robot Analysis 1 | . . . . 1 Hauler Manifests 1 | . 1 . . . Fabricator Hacks . | . . . . . Repair Station Hacks 2 | . . . 2 . Scan Component 1 | . . . 1 . Repair 1 | . . . 1 . Recycling Unit Hacks 7 | . 7 . . . Process 2 | . 2 . . . Report Inventory 3 | . 3 . . . Retrieve Matter 1 | . 1 . . . Retrieve Components 1 | . 1 . . . Scanalyzer . | . . . . . Garrison Access Hacks . | . . . . . Unauthorized Hacks . | . . . . . Terminals . | . . . . . Fabricators . | . . . . . Repair Stations . | . . . . . Recycling Units . | . . . . . Scanalyzers . | . . . . . Garrison Access . | . . . . . Data Cores Recovered . | . . . . . Used . | . . . . . Hacking Detections 3 | . 1 . 2 . Full Trace Events 1 | . . . 1 . Feedback Events . | . . . . . Feedback Blocked . | . . . . . Robot Schematics Acquired . | . . . . . Robots Built . | . . . . . Authchips . | . . . . . Time . | . . . . . Total Robot Build Rating . | . . . . . Part Schematics Acquired . | . . . . . Parts Built . | . . . . . Authchips . | . . . . . Time . | . . . . . Total Part Build Rating . | . . . . . Parts Repaired 1 | . . . 1 . Time 13 | . . . 13 . Parts Recycled . | . . . . . Recycled Matter 1 | . 1 . . . Retrieved Matter . | . . . . . Retrieved Components . | . . . . . Parts Scanalyzed . | . . . . . Part Schematics Acquired . | . . . . . Parts Damaged . | . . . . . Bothacking | -11 -10 -10 -9 -8 ------------ Run | Yrd Mat Min Mat Mat Used RIF Installer . | . . . . . Robots Hacked . | . . . . . Non-combat . | . . . . . Combat . | . . . . . Robot Hacks Applied . | . . . . . Relay Couplers Released . | . . . . . Fabnet Peak Effective % . | . . . . . Robots Rewired . | . . . . . Allies Hacked . | . . . . . Hacks Repelled . | . . . . . Allies | -11 -10 -10 -9 -8 -------- Run | Yrd Mat Min Mat Mat Total Allies . | . . . . . Largest Group . | . . . . . Highest-Rated Group . | . . . . . Highest-Rated Ally . | . . . . . Total Orders . | . . . . . Ally Attacks . | . . . . . Total Damage . | . . . . . Kills . | . . . . . Allies Corrupted . | . . . . . Allies Melted . | . . . . . Intel | -11 -10 -10 -9 -8 ------- Run | Yrd Mat Min Mat Mat Robot Analysis Total 1 | . . . . 1 Derelict Logs Recovered . | . . . . . Drone Launches . | . . . . . Drone Recoveries . | . . . . . Exploration | -11 -10 -10 -9 -8 ------------- Run | Yrd Mat Min Mat Mat Turns Passed 2887 | 751 684 240 786 426 Spaces Moved 1307 | 176 358 148 417 208 Core 18 | 5 6 . 7 . Treads 539 | 171 352 16 . . Legs 750 | . . 132 410 208 Wheels . | . . . . . Hover . | . . . . . Flight . | . . . . . Fastest Speed 50 | 50 160 120 120 120 Average Speed 140 | 156 160 124 127 131 Slowest Speed 450 | 160 200 160 450 260 Overloaded Moves . | . . . . . Propulsion Burnouts . | . . . . . Robots Hopped . | . . . . . Cave-ins Triggered . | . . . . . Exploration Rate (%) 24 | 17 36 16 30 24 Regions Visited 4 Branch Regions 1 Pre-discovered Areas . | . . . . . Known Exits Taken . | . . . . . Unknown Exits Taken 4 | 1 1 1 1 . Scrap Searched 1 | . . 1 . . Spaces Dug . | . . . . . Terrain Destroyed . | . . . . . Melee . | . . . . . Projectile . | . . . . . AOE . | . . . . . Terrain Rammed . | . . . . . Walls Destroyed . | . . . . . Machines Disabled . | . . . . . Actions | -11 -10 -10 -9 -8 --------- Run | Yrd Mat Min Mat Mat Total 2115 | 650 424 174 583 284 Wait 553 | 456 15 5 65 12 Move 1303 | 175 357 147 416 208 Hop . | . . . . . Pick Up 50 | 12 12 3 19 4 Fast Attach . | . . . . . Attach 43 | 6 7 3 14 13 Detach 7 | . 1 . 4 2 Swap 1 | . . . 1 . Drop 18 | . 5 1 10 2 Fire 133 | . 24 15 52 42 Melee . | . . . . . Ram . | . . . . . Kick 3 | . . . 2 1 Crush 3 | 1 2 . . . Escape Stasis . | . . . . . Rewire 1 | . 1 . . . Trap . | . . . . . Miscellaneous . | . . . . . Route ------- -11/Scrapyard -10/Materials -10/Mines -9/Materials -8/Materials History --------- Turn | Location | Event 32 | -11/Scrapyard | Discovered new exit (range 16) 752 | -11/Scrapyard | Entered Materials 753 | -10/Materials | Build established: Mutant 1128 | -10/Materials | Discovered new exit (range 12) 1436 | -10/Materials | Entered Mines 1454 | -10/Mines | Core integrity fell below 50% 1558 | -10/Mines | Discovered new exit (range 15) 1676 | -10/Mines | Entered Materials 1676 | -9/Materials | Evolved 2 slots: Propulsion x2 1707 | -9/Materials | Repaired Aluminum Leg 2340 | -9/Materials | Build established: Scavenger-Mutant 2374 | -9/Materials | Discovered new exit (range 13) 2462 | -9/Materials | Entered another Materials area 2462 | -8/Materials | Evolved 2 slots: Utility x1, Weapon x1 2866 | -8/Materials | Core integrity fell below 50% 2879 | -8/Materials | Core integrity fell below 20% 2888 | -8/Materials | Destroyed by H-55 Commando with Gauss Rifle Last Messages --------------- 02873_ R-06 Scavenger collects Imp. Cooling System. 02875_ Penetrated by Slug. 02875_ Hvy. Assault Rifle destroyed. 02876_ Penetrated by Slug. 02878_ R-06 Scavenger collects Lgt. Armor Plating. 02880_ Lgt. Assault Rifle destroyed. 02880_ Knocked back. 02881_ R-06 Scavenger collects Adv. Visual Processing Unit. 02881_ Penetrated by Slug. 02885_ Critical hit (Destroy). 02885_ Aluminum Leg destroyed. 02886_ Penetrated by Slug. 02886_ Particle Gun destroyed. 02886_ R-06 Scavenger collects Armor Integrity Analyzer. 02887_ W-25 Informer sends out distress signal. 02887_ Penetrated by Slug. Map ----- +----------------------------------------------------+ | ??????????????????# # #???????????????????? | | ??????????????????# # #???????????????????? | | ??????????????????######## #???????????????????? | | ?????????????????????????# #??#+##?????????????? | | ?????????????????????????# #?? ?????????????? | | ?????????????????????????# #? ""????????????? | | ?????????????????????????# #? * "" ?#?????????? | | ?????????????????????????# # #?????????? | | ?????????????????????????# # """ """ #?????????? | | ?????????????????????????# # """ """ ??????????? | | ?????????????????????????# #?""" """???????????? | | ?????????????????????????# #?? ????????????? | | ?????????????????????????# #####+##????????????? | | ?????????????????????????# ! #????????????? | | ?????????????????????????# #### #????????????? | | ?????????????????????????# #??# #????????????? | | ?????????????????????????# #??# #????????????? | | ????????????????????######+#### #????????????? | | ????????????????????# w ## #????????????? | | ????????????????????# %""" ## ##???????????? | | ????????????????????# "Y" # g% %####### ?? | | ????????????????????#! % *#= | | ????????????????????# %!%/h| % | | ????????????????????# ]% r ![;H g g g ] | | ???????????????????##* //!=[x ####### ? | | ???????????????????#%% @ //!%#######???????? #? | | ???????????? ;=[% /!!=#?????????????????? | | ???????????# # #######;####?????????????????? | | ?????????????????????????##????????????????????? | | ???????????????????????????????????????????????? | | ???????????????????????????????????????????????? | | ???????????????????????????????????????????????? | | ???????????????????????????????????????????????? | | ???????????????????????????????????????????????? | | ???????????????????????????????????????????????? | | ???????????????????????????????????????????????? | | ???????????????????????????????????????????????? | | ???????????????????????????????????????????????? | | ???????????????????????????????????????????????? | | ???????????????????????????????????????????????? | | ???????????????????????????????????????????????? | | ???????????????????????????????????????????????? | | ???????????????????????????????????????????????? | | ???????????????????????????????????????????????? | | ???????????????????????????????????????????????? | | ???????????????????????????????????????????????? | | ???????????????????????????????????????????????? | | | | | | | +----------------------------------------------------+ Best States ------------- Heat Dissipation 31 Energy Generation 14 Energy Capacity 265 Matter Stores 300 Matter Capacity 300 Sight Range 16 Terrain Scan Density 10 ECM Strength 1 Armor Coverage 150 Evasion (%) 55 Recoil Reduction 2 Item Schematics ----------------- None Robot Schematics ------------------ None Fabricated ------------ Nothing Alien Tech Used ----------------- None Achievements -------------- None Challenges ------------ None Game ------ Seed LobotomyDamperDerivative Manual? 0 Play Time 01:00:48 Cumulative 2.6 hours Start 2024.09.08 @ 12:35:28 End 2024.09.08 @ 14:03:34 Sessions 1 Manual Loads 0 Difficulty Rogue Special Mode None Game No. 7 Rogue 7 Adventurer 0 Explorer 0 Win Type - Total 0 Types 0/0/0/0/0/0/0/0/0 Lore% 1 Gallery% 5 Achievement% 6 Wizard Run 0 Options --------- Layout 1 ASCII 0 Keyboard 1 Movement Arrows Keybinds 0 Fullscreen 1 Font 24/Smallcaps Map View 50x35 Zoom Use 0% Tactical HUD 1 Map Filters NONE Filters NONE Steam 1 RUN: 335f2b31-cf94-4801-8ac7-2ac63b5be438